[Event "Live Chess"]
[Site "Chess.com"]
[Date "2023.05.21"]
[Round "-"]
[White "Tushinskiy"]
[Black "LiamClery2020"]
[Result "1-0"]
[WhiteElo "2149"]
[BlackElo "1984"]
[TimeControl "300"]
[EndTime "2:51:55 PDT"]
[Termination "Tushinskiy won by resignation"]

1. d4 {[%clk 0:04:57.2]} 1... Nf6 {[%clk 0:04:59.5]} 2. c3 {[%clk 0:04:57.1]}
2... e6 {[%clk 0:04:58]} 3. Nf3 {[%clk 0:04:57]} 3... d5 {[%clk 0:04:57.7]} 4.
Bf4 {[%clk 0:04:56.2]} 4... c5 {[%clk 0:04:57.6]} 5. Bg3 {[%clk 0:04:56]} 5...
Nc6 {[%clk 0:04:57]} 6. e3 {[%clk 0:04:55.1]} 6... Bd6 {[%clk 0:04:56]} 7. Bd3
{[%clk 0:04:53.7]} 7... Bxg3 {[%clk 0:04:53.2]} 8. hxg3 {[%clk 0:04:53.6]} 8...
cxd4 {[%clk 0:04:53.1]} 9. exd4 {[%clk 0:04:52.4]} 9... Qc7 {[%clk 0:04:53]} 10.
Qe2 {[%clk 0:04:50.8]} 10... Bd7 {[%clk 0:04:51.8]} 11. Nbd2 {[%clk 0:04:50]}
11... O-O-O {[%clk 0:04:51]} 12. Ne5 {[%clk 0:04:49.3]} 12... Be8 {[%clk
0:04:47]} 13. f4 {[%clk 0:04:43.6]} 13... Nd7 {[%clk 0:04:42.2]} 14. Nxc6 {[%clk
0:04:38.1]} 14... Qxc6 {[%clk 0:04:38.3]} 15. Nf3 {[%clk 0:04:35.8]} 15... f6
{[%clk 0:04:36.4]} 16. O-O {[%clk 0:04:33.4]} 16... Bg6 {[%clk 0:04:34.2]} 17.
Rfe1 {[%clk 0:04:31]} 17... Rde8 {[%clk 0:04:29.4]} 18. Qc2 {[%clk 0:04:25.4]}
18... Bxd3 {[%clk 0:04:26.6]} 19. Qxd3 {[%clk 0:04:25.3]} 19... h5 {[%clk
0:04:18.2]} 20. Re2 {[%clk 0:04:23.6]} 20... Rh6 {[%clk 0:04:09.3]} 21. Rae1
{[%clk 0:04:21.7]} 21... Nf8 {[%clk 0:04:08.7]} 22. b3 {[%clk 0:04:17.4]} 22...
Ng6 {[%clk 0:04:07.6]} 23. f5 {[%clk 0:04:10.7]} 23... Nf8 {[%clk 0:04:00.1]}
24. fxe6 {[%clk 0:04:08.1]} 24... Rxe6 {[%clk 0:03:58.1]} 25. Qf5 {[%clk
0:03:57.5]} 25... Kd7 {[%clk 0:03:53.4]} 26. c4 {[%clk 0:03:55.8]} 26... g6
{[%clk 0:03:50.5]} 27. cxd5 {[%clk 0:03:45]} 27... gxf5 {[%clk 0:03:47.1]} 28.
dxc6+ {[%clk 0:03:44.9]} 28... Rxc6 {[%clk 0:03:46.3]} 29. Re7+ {[%clk
0:03:43.4]} 29... Kd6 {[%clk 0:03:44.2]} 30. Rxb7 {[%clk 0:03:38.2]} 30... Ne6
{[%clk 0:03:42]} 31. Rxa7 {[%clk 0:03:28.1]} 31... f4 {[%clk 0:03:38.2]} 32.
gxf4 {[%clk 0:03:20.6]} 32... Nxf4 {[%clk 0:03:37.5]} 33. Nh4 {[%clk 0:03:12.2]}
33... Kd5 {[%clk 0:03:31]} 34. Ra5+ {[%clk 0:03:08.2]} 34... Kxd4 {[%clk
0:03:30]} 35. Ra4+ {[%clk 0:03:07]} 1-0

[Event "Live Chess"]
[Site "Chess.com"]
[Date "2023.05.21"]
[Round "-"]
[White "Ian-Morley"]
[Black "yeetpizza74"]
[Result "0-1"]
[WhiteElo "1051"]
[BlackElo "495"]
[TimeControl "300"]
[EndTime "2:51:56 PDT"]
[Termination "yeetpizza74 won by checkmate"]

1. e4 {[%clk 0:04:55.7]} 1... c6 {[%clk 0:04:58.4]} 2. d4 {[%clk 0:04:53.4]}
2... d5 {[%clk 0:04:57.2]} 3. f3 {[%clk 0:04:52.6]} 3... dxe4 {[%clk 0:04:51.7]}
4. fxe4 {[%clk 0:04:49.4]} 4... Nf6 {[%clk 0:04:49.6]} 5. e5 {[%clk 0:04:47.7]}
5... Nd5 {[%clk 0:04:47.7]} 6. Nc3 {[%clk 0:04:46.6]} 6... Nxc3 {[%clk
0:04:45.7]} 7. bxc3 {[%clk 0:04:46.1]} 7... Bf5 {[%clk 0:04:40.5]} 8. Bc4 {[%clk
0:04:44.1]} 8... e6 {[%clk 0:04:35]} 9. h4 {[%clk 0:03:36.6]} 9... Be7 {[%clk
0:04:31.2]} 10. Bg5 {[%clk 0:03:35.4]} 10... Bxg5 {[%clk 0:04:29]} 11. hxg5
{[%clk 0:03:34.6]} 11... O-O {[%clk 0:04:25.1]} 12. Qh5 {[%clk 0:03:30.5]} 12...
Bg6 {[%clk 0:04:22.9]} 13. Qxh7+ {[%clk 0:03:29.4]} 13... Bxh7 {[%clk
0:04:21.1]} 14. Rxh7 {[%clk 0:03:28.4]} 14... Kxh7 {[%clk 0:04:19.8]} 15. Nf3
{[%clk 0:03:27.8]} 15... f6 {[%clk 0:04:11.9]} 16. gxf6 {[%clk 0:03:23.1]} 16...
gxf6 {[%clk 0:04:10.6]} 17. O-O-O {[%clk 0:03:22.5]} 17... fxe5 {[%clk
0:04:08.8]} 18. Rh1+ {[%clk 0:03:21.5]} 18... Kg7 {[%clk 0:04:05.9]} 19. Nxe5
{[%clk 0:03:19.4]} 19... Rh8 {[%clk 0:04:02]} 20. Rxh8 {[%clk 0:03:12]} 20...
Qxh8 {[%clk 0:04:00.2]} 21. Bxe6 {[%clk 0:03:08.8]} 21... Qe8 {[%clk 0:03:46.6]}
22. Bg4 {[%clk 0:03:02.1]} 22... Nd7 {[%clk 0:03:44.2]} 23. Nf3 {[%clk
0:02:59.9]} 23... Nf6 {[%clk 0:03:40.3]} 24. Bh3 {[%clk 0:02:57.3]} 24... Ne4
{[%clk 0:03:35.3]} 25. Ne5 {[%clk 0:02:55.3]} 25... Rd8 {[%clk 0:03:32.5]} 26.
Kb2 {[%clk 0:02:51.2]} 26... Nf2 {[%clk 0:03:30.8]} 27. Bd7 {[%clk 0:02:47.8]}
27... Rxd7 {[%clk 0:03:27.2]} 28. Nxd7 {[%clk 0:02:46.6]} 28... Qxd7 {[%clk
0:03:26.1]} 29. Kb3 {[%clk 0:02:33.7]} 29... Qe6+ {[%clk 0:03:20.3]} 30. c4
{[%clk 0:02:32]} 30... Ne4 {[%clk 0:03:13.1]} 31. d5 {[%clk 0:02:30.3]} 31...
Nd2+ {[%clk 0:03:09]} 32. Kc3 {[%clk 0:02:29.2]} 32... Qe3+ {[%clk 0:03:05.2]}
33. Kb4 {[%clk 0:02:28]} 33... Qe2 {[%clk 0:02:52.2]} 34. d6 {[%clk 0:02:20.8]}
34... Qe8 {[%clk 0:02:48.5]} 35. Kc3 {[%clk 0:02:19.3]} 35... Ne4+ {[%clk
0:02:46.9]} 36. Kb4 {[%clk 0:02:18.3]} 36... Nxd6 {[%clk 0:02:45.8]} 37. c5
{[%clk 0:02:17.2]} 37... Nb5 {[%clk 0:02:41.6]} 38. a4 {[%clk 0:02:15.5]} 38...
Nd4 {[%clk 0:02:39.4]} 39. c3 {[%clk 0:02:14.6]} 39... Ne2 {[%clk 0:02:36.8]}
40. Ka5 {[%clk 0:02:13.3]} 40... b6+ {[%clk 0:02:35]} 41. Ka6 {[%clk 0:02:12.4]}
41... Qc8+ {[%clk 0:02:32.5]} 42. Kxa7 {[%clk 0:02:08.8]} 42... Qc7+ {[%clk
0:02:29.8]} 43. Ka6 {[%clk 0:02:07.3]} 43... bxc5 {[%clk 0:02:27.6]} 44. a5
{[%clk 0:02:06.5]} 44... Qh2 {[%clk 0:02:25]} 45. g4 {[%clk 0:02:05.3]} 45...
Qg3 {[%clk 0:02:23.2]} 46. g5 {[%clk 0:02:04.5]} 46... Qxg5 {[%clk 0:02:22.1]}
47. c4 {[%clk 0:02:03.9]} 47... Qf4 {[%clk 0:02:20.5]} 48. Kb6 {[%clk 0:02:03]}
48... Qxc4 {[%clk 0:02:18.5]} 49. a6 {[%clk 0:02:02.1]} 49... Qb5+ {[%clk
0:02:10]} 50. Kc7 {[%clk 0:02:00.1]} 50... Qxa6 {[%clk 0:02:08.6]} 51. Kd6
{[%clk 0:01:59.5]} 51... c4 {[%clk 0:02:07.2]} 52. Kc5 {[%clk 0:01:58.5]} 52...
c3 {[%clk 0:02:04.7]} 53. Kb4 {[%clk 0:01:57.8]} 53... c2 {[%clk 0:02:03.1]} 54.
Kb3 {[%clk 0:01:57.1]} 54... c1=Q {[%clk 0:02:01.5]} 55. Kb4 {[%clk 0:01:54.6]}
55... Qb6+ {[%clk 0:02:00.3]} 56. Ka4 {[%clk 0:01:52.7]} 56... Qa1# {[%clk
0:01:58.4]} 0-1

[Event "Live Chess"]
[Site "Chess.com"]
[Date "2023.05.21"]
[Round "-"]
[White "chessfiction"]
[Black "whitedjohn"]
[Result "0-1"]
[WhiteElo "2326"]
[BlackElo "1656"]
[TimeControl "300"]
[EndTime "2:52:00 PDT"]
[Termination "whitedjohn won by resignation"]

1. e4 {[%clk 0:04:58.3]} 1... Nf6 {[%clk 0:04:59.1]} 2. d4 {[%clk 0:04:58.2]}
2... Nxe4 {[%clk 0:04:57.7]} 3. Nc3 {[%clk 0:04:58.1]} 3... Nxc3 {[%clk
0:04:56.4]} 4. bxc3 {[%clk 0:04:58]} 4... d5 {[%clk 0:04:55.4]} 5. Nf3 {[%clk
0:04:57.9]} 5... Bg4 {[%clk 0:04:53.9]} 6. Bd3 {[%clk 0:04:57.8]} 6... e6 {[%clk
0:04:52.7]} 7. Rb1 {[%clk 0:04:57.1]} 7... b6 {[%clk 0:04:47.5]} 8. Qe2 {[%clk
0:04:53]} 8... Be7 {[%clk 0:04:42]} 9. Bf4 {[%clk 0:04:46.6]} 9... O-O {[%clk
0:04:33.7]} 10. h3 {[%clk 0:04:45]} 10... Bxf3 {[%clk 0:04:30.7]} 11. Qxf3
{[%clk 0:04:36.5]} 11... Bd6 {[%clk 0:04:29.3]} 12. Bd2 {[%clk 0:04:32.6]} 12...
c5 {[%clk 0:04:21.5]} 13. O-O {[%clk 0:04:30.3]} 13... Nd7 {[%clk 0:04:19.4]}
14. c4 {[%clk 0:04:16.4]} 14... Nf6 {[%clk 0:04:17]} 15. Bg5 {[%clk 0:04:14.8]}
15... Be7 {[%clk 0:04:13.9]} 16. cxd5 {[%clk 0:04:10.7]} 16... Nxd5 {[%clk
0:04:11.8]} 17. Qe4 {[%clk 0:04:06.6]} 17... g6 {[%clk 0:04:06]} 18. Bxe7 {[%clk
0:04:04.7]} 18... Qxe7 {[%clk 0:04:04.5]} 19. Rb3 {[%clk 0:03:55.5]} 19... cxd4
{[%clk 0:03:55.3]} 20. Re1 {[%clk 0:03:51.8]} 20... Qf6 {[%clk 0:03:46]} 21. Bc4
{[%clk 0:03:44.8]} 21... Rad8 {[%clk 0:03:29.8]} 22. Rf3 {[%clk 0:03:40.9]}
22... Qg7 {[%clk 0:03:26.5]} 23. Rd1 {[%clk 0:03:29.1]} 23... Nc3 {[%clk
0:03:19.9]} 24. Rxc3 {[%clk 0:03:27.1]} 24... dxc3 {[%clk 0:03:18.4]} 25. Re1
{[%clk 0:03:21]} 25... Qd4 {[%clk 0:03:09.2]} 26. Qe2 {[%clk 0:03:16.3]} 26...
Qd2 {[%clk 0:03:03.3]} 27. Qe4 {[%clk 0:03:12.8]} 27... Rd4 {[%clk 0:02:55]} 28.
Qe5 {[%clk 0:03:06.1]} 28... Rxc4 {[%clk 0:02:51.1]} 0-1

[Event "Live Chess"]
[Site "Chess.com"]
[Date "2023.05.21"]
[Round "-"]
[White "PetorPrydatko"]
[Black "stevochess11"]
[Result "0-1"]
[WhiteElo "369"]
[BlackElo "1731"]
[TimeControl "300"]
[EndTime "2:52:15 PDT"]
[Termination "stevochess11 won by checkmate"]

1. e4 {[%clk 0:04:57.5]} 1... c5 {[%clk 0:04:58.8]} 2. Bc4 {[%clk 0:04:49.3]}
2... g6 {[%clk 0:04:57.1]} 3. Nf3 {[%clk 0:04:46.8]} 3... Bg7 {[%clk 0:04:55.9]}
4. O-O {[%clk 0:04:43.5]} 4... Nc6 {[%clk 0:04:54.3]} 5. d3 {[%clk 0:04:30.9]}
5... d6 {[%clk 0:04:51.9]} 6. Bg5 {[%clk 0:04:25.7]} 6... Bg4 {[%clk 0:04:48.2]}
7. Re1 {[%clk 0:04:08]} 7... Nf6 {[%clk 0:04:40.8]} 8. e5 {[%clk 0:04:02.8]}
8... dxe5 {[%clk 0:04:37.3]} 9. Nbd2 {[%clk 0:03:55.3]} 9... O-O {[%clk
0:04:33.2]} 10. Re4 {[%clk 0:03:46.7]} 10... Nd4 {[%clk 0:04:29]} 11. Rxe5
{[%clk 0:03:39.8]} 11... Qc7 {[%clk 0:04:17.5]} 12. Bf4 {[%clk 0:03:19.9]} 12...
Nh5 {[%clk 0:03:57.2]} 13. Re4 {[%clk 0:03:01.9]} 13... Nxf4 {[%clk 0:03:55.6]}
14. Rxd4 {[%clk 0:02:46.5]} 14... cxd4 {[%clk 0:03:52.5]} 15. Nxd4 {[%clk
0:02:21.3]} 15... Bxd1 {[%clk 0:03:49.1]} 16. Nb5 {[%clk 0:02:13.4]} 16... Qc6
{[%clk 0:03:36]} 17. Nd4 {[%clk 0:01:56.5]} 17... Qxg2# {[%clk 0:03:33.8]} 0-1

[Event "Live Chess"]
[Site "Chess.com"]
[Date "2023.05.21"]
[Round "-"]
[White "EdenHazard8"]
[Black "Tilbs_12"]
[Result "1-0"]
[WhiteElo "1980"]
[BlackElo "1574"]
[TimeControl "300"]
[EndTime "2:52:18 PDT"]
[Termination "EdenHazard8 won by checkmate"]

1. e4 {[%clk 0:04:58.9]} 1... c6 {[%clk 0:04:59.2]} 2. d4 {[%clk 0:04:57.5]}
2... d5 {[%clk 0:04:57.1]} 3. e5 {[%clk 0:04:56.3]} 3... c5 {[%clk 0:04:56.4]}
4. c3 {[%clk 0:04:55.1]} 4... Nc6 {[%clk 0:04:54.6]} 5. Nf3 {[%clk 0:04:54]}
5... Bg4 {[%clk 0:04:53.7]} 6. Be3 {[%clk 0:04:51.9]} 6... cxd4 {[%clk
0:04:52.5]} 7. cxd4 {[%clk 0:04:50.6]} 7... e6 {[%clk 0:04:51.8]} 8. Nc3 {[%clk
0:04:49.4]} 8... Nge7 {[%clk 0:04:48.4]} 9. a3 {[%clk 0:04:36.7]} 9... Nf5
{[%clk 0:04:45.3]} 10. Bb5 {[%clk 0:04:34.8]} 10... Qb6 {[%clk 0:04:38.5]} 11.
Bxc6+ {[%clk 0:04:30.9]} 11... bxc6 {[%clk 0:04:37.5]} 12. O-O {[%clk
0:04:18.6]} 12... Be7 {[%clk 0:04:36]} 13. Qd3 {[%clk 0:04:15.8]} 13... Bxf3
{[%clk 0:04:33.2]} 14. gxf3 {[%clk 0:04:15.7]} 14... h6 {[%clk 0:04:25.8]} 15.
Kh1 {[%clk 0:04:14.2]} 15... Qxb2 {[%clk 0:04:01.1]} 16. Rfb1 {[%clk 0:04:01.7]}
16... Qxa3 {[%clk 0:03:53.6]} 17. Rxa3 {[%clk 0:03:59.3]} 17... Bxa3 {[%clk
0:03:53.5]} 18. Nxd5 {[%clk 0:03:58.6]} 18... cxd5 {[%clk 0:03:48.4]} 19. Qxa3
{[%clk 0:03:56.9]} 19... Nxe3 {[%clk 0:03:46.2]} 20. fxe3 {[%clk 0:03:56.6]}
20... O-O-O {[%clk 0:03:40.9]} 21. Qc5+ {[%clk 0:03:54.7]} 21... Kd7 {[%clk
0:03:36.8]} 22. Rb7+ {[%clk 0:03:54.6]} 22... Ke8 {[%clk 0:03:35.6]} 23. Qe7#
{[%clk 0:03:54.5]} 1-0

[Event "Live Chess"]
[Site "Chess.com"]
[Date "2023.05.21"]
[Round "-"]
[White "martynstanley"]
[Black "ItsNot_Jasper"]
[Result "0-1"]
[WhiteElo "1010"]
[BlackElo "1349"]
[TimeControl "300"]
[EndTime "2:52:22 PDT"]
[Termination "ItsNot_Jasper won by checkmate"]

1. d4 {[%clk 0:04:57.8]} 1... Nf6 {[%clk 0:04:58.4]} 2. e3 {[%clk 0:04:57.3]}
2... e6 {[%clk 0:04:57.7]} 3. Bd3 {[%clk 0:04:56.7]} 3... c5 {[%clk 0:04:57]} 4.
c3 {[%clk 0:04:54.9]} 4... Nc6 {[%clk 0:04:55.7]} 5. f4 {[%clk 0:04:54.2]} 5...
d5 {[%clk 0:04:53.6]} 6. Nf3 {[%clk 0:04:53.3]} 6... c4 {[%clk 0:04:52.4]} 7.
Bc2 {[%clk 0:04:52.3]} 7... b5 {[%clk 0:04:51.6]} 8. O-O {[%clk 0:04:51.8]} 8...
a5 {[%clk 0:04:50.9]} 9. Ne5 {[%clk 0:04:51]} 9... Nxe5 {[%clk 0:04:48.6]} 10.
fxe5 {[%clk 0:04:49.4]} 10... Nd7 {[%clk 0:04:48.2]} 11. Qf3 {[%clk 0:04:48.5]}
11... f5 {[%clk 0:04:44.4]} 12. exf6 {[%clk 0:04:45.9]} 12... Nxf6 {[%clk
0:04:43.5]} 13. Nd2 {[%clk 0:04:44.4]} 13... Be7 {[%clk 0:04:40.2]} 14. e4
{[%clk 0:04:43.7]} 14... O-O {[%clk 0:04:35.4]} 15. e5 {[%clk 0:04:40.3]} 15...
Nd7 {[%clk 0:04:32.4]} 16. Bxh7+ {[%clk 0:04:38]} 16... Kxh7 {[%clk 0:04:30.2]}
17. Qh5+ {[%clk 0:04:36.1]} 17... Kg8 {[%clk 0:04:29.6]} 18. Nf3 {[%clk
0:04:32.9]} 18... Rf5 {[%clk 0:04:27.7]} 19. Qg6 {[%clk 0:04:29.6]} 19... Nf8
{[%clk 0:04:22.1]} 20. Qg3 {[%clk 0:04:27.3]} 20... g6 {[%clk 0:03:55.5]} 21.
Bh6 {[%clk 0:04:24.9]} 21... Kh7 {[%clk 0:03:54.5]} 22. Qh3 {[%clk 0:04:20.1]}
22... Rh5 {[%clk 0:03:53.4]} 23. Ng5+ {[%clk 0:04:16.8]} 23... Bxg5 {[%clk
0:03:51.9]} 24. Rf7+ {[%clk 0:04:05.6]} 24... Kh8 {[%clk 0:03:51.1]} 25. Qf3
{[%clk 0:04:01.3]} 25... Bxh6 {[%clk 0:03:48.6]} 26. Rf1 {[%clk 0:03:58.2]}
26... Rf5 {[%clk 0:03:46.5]} 27. Rxf5 {[%clk 0:03:56.6]} 27... gxf5 {[%clk
0:03:45.2]} 28. g3 {[%clk 0:03:54.3]} 28... Qg5 {[%clk 0:03:43.6]} 29. b3 {[%clk
0:03:51.5]} 29... Qe3+ {[%clk 0:03:42.6]} 30. Qxe3 {[%clk 0:03:50]} 30... Bxe3+
{[%clk 0:03:42.5]} 31. Kg2 {[%clk 0:03:49.4]} 31... Bb7 {[%clk 0:03:40.7]} 32.
h4 {[%clk 0:03:46.9]} 32... Nd7 {[%clk 0:03:39.3]} 33. Kh3 {[%clk 0:03:45.5]}
33... Rg8 {[%clk 0:03:38.4]} 34. Re1 {[%clk 0:03:42.5]} 34... Bh6 {[%clk
0:03:36.1]} 35. Re2 {[%clk 0:03:41]} 35... f4 {[%clk 0:03:35.1]} 36. gxf4 {[%clk
0:03:39.5]} 36... Bxf4 {[%clk 0:03:35]} 37. Rg2 {[%clk 0:03:38.2]} 37... Rxg2
{[%clk 0:03:33.3]} 38. Kxg2 {[%clk 0:03:37.6]} 38... cxb3 {[%clk 0:03:30.9]} 39.
axb3 {[%clk 0:03:36.4]} 39... a4 {[%clk 0:03:30.5]} 40. bxa4 {[%clk 0:03:35.5]}
40... bxa4 {[%clk 0:03:30.1]} 41. Kf3 {[%clk 0:03:34]} 41... a3 {[%clk
0:03:29.7]} 42. Ke2 {[%clk 0:03:33.6]} 42... a2 {[%clk 0:03:29.6]} 43. Kf3
{[%clk 0:03:33]} 43... a1=Q {[%clk 0:03:29.5]} 44. Kxf4 {[%clk 0:03:32.5]} 44...
Qxc3 {[%clk 0:03:28.5]} 45. h5 {[%clk 0:03:31.5]} 45... Qxd4+ {[%clk 0:03:28]}
46. Kg5 {[%clk 0:03:30.4]} 46... Qxe5+ {[%clk 0:03:27.7]} 47. Kh4 {[%clk
0:03:29.4]} 47... Qf4+ {[%clk 0:03:26.6]} 48. Kh3 {[%clk 0:03:27.9]} 48... Qf5+
{[%clk 0:03:25]} 49. Kg3 {[%clk 0:03:26.3]} 49... Qg5+ {[%clk 0:03:23.2]} 50.
Kf3 {[%clk 0:03:25.1]} 50... d4+ {[%clk 0:03:22.4]} 51. Ke2 {[%clk 0:03:21.8]}
51... Qe3+ {[%clk 0:03:21.5]} 52. Kd1 {[%clk 0:03:20.6]} 52... Bf3+ {[%clk
0:03:20.5]} 53. Kc2 {[%clk 0:03:19.3]} 53... Qc3+ {[%clk 0:03:19.7]} 54. Kb1
{[%clk 0:03:18.1]} 54... Be4+ {[%clk 0:03:18.9]} 55. Ka2 {[%clk 0:03:16]} 55...
Qa5+ {[%clk 0:03:15.4]} 56. Kb3 {[%clk 0:03:14.7]} 56... Nc5+ {[%clk 0:03:13.5]}
57. Kc4 {[%clk 0:03:12.6]} 57... Qc3+ {[%clk 0:03:10.2]} 58. Kb5 {[%clk
0:03:08.7]} 58... d3 {[%clk 0:03:10.1]} 59. h6 {[%clk 0:03:07.5]} 59... d2
{[%clk 0:03:10]} 60. h7 {[%clk 0:03:06.8]} 60... d1=Q {[%clk 0:03:07.7]} 61. Kb6
{[%clk 0:03:02.7]} 61... Qdb3+ {[%clk 0:03:07.3]} 62. Kc7 {[%clk 0:03:00.4]}
62... Nd3+ {[%clk 0:03:06.8]} 63. Kd8 {[%clk 0:02:59.5]} 63... Qd5+ {[%clk
0:03:06.2]} 64. Ke7 {[%clk 0:02:58.8]} 64... Qc7+ {[%clk 0:03:05.6]} 65. Kf6
{[%clk 0:02:57.9]} 65... Qf5# {[%clk 0:03:05.1]} 0-1

[Event "Live Chess"]
[Site "Chess.com"]
[Date "2023.05.21"]
[Round "-"]
[White "f4nomore"]
[Black "Doge_Dandolo"]
[Result "0-1"]
[WhiteElo "1405"]
[BlackElo "1861"]
[TimeControl "300"]
[EndTime "2:52:33 PDT"]
[Termination "Doge_Dandolo won by resignation"]

1. c4 {[%clk 0:04:57.7]} 1... Nf6 {[%clk 0:04:57.7]} 2. Nc3 {[%clk 0:04:56.5]}
2... c5 {[%clk 0:04:56.3]} 3. d3 {[%clk 0:04:49.9]} 3... g6 {[%clk 0:04:53.3]}
4. Nf3 {[%clk 0:04:49.8]} 4... Bg7 {[%clk 0:04:50.7]} 5. e4 {[%clk 0:04:48.5]}
5... d6 {[%clk 0:04:49.5]} 6. Bd2 {[%clk 0:04:47.4]} 6... Nc6 {[%clk 0:04:48.8]}
7. Be2 {[%clk 0:04:46.5]} 7... O-O {[%clk 0:04:47.9]} 8. O-O {[%clk 0:04:45.4]}
8... Ne8 {[%clk 0:04:45.8]} 9. h3 {[%clk 0:04:44.5]} 9... Nc7 {[%clk 0:04:42.9]}
10. Nh2 {[%clk 0:04:43.1]} 10... Nd4 {[%clk 0:04:40.4]} 11. f4 {[%clk
0:04:39.1]} 11... Bd7 {[%clk 0:04:38.7]} 12. Bg4 {[%clk 0:04:36.4]} 12... Rb8
{[%clk 0:04:34.1]} 13. Bxd7 {[%clk 0:04:34.6]} 13... Qxd7 {[%clk 0:04:32.5]} 14.
Qg4 {[%clk 0:04:32.8]} 14... Qxg4 {[%clk 0:04:27.3]} 15. Nxg4 {[%clk 0:04:30.5]}
15... b5 {[%clk 0:04:25.5]} 16. b3 {[%clk 0:04:21.3]} 16... a5 {[%clk
0:04:14.6]} 17. Rab1 {[%clk 0:04:07.4]} 17... h5 {[%clk 0:04:07.9]} 18. Nf2
{[%clk 0:04:00.3]} 18... f5 {[%clk 0:03:58]} 19. exf5 {[%clk 0:03:56.2]} 19...
Rxf5 {[%clk 0:03:56]} 20. Nfe4 {[%clk 0:03:52.8]} 20... Rff8 {[%clk 0:03:41.8]}
21. Nd5 {[%clk 0:03:41.2]} 21... Nxd5 {[%clk 0:03:36.8]} 22. cxd5 {[%clk
0:03:39.7]} 22... b4 {[%clk 0:03:30.6]} 23. Ng5 {[%clk 0:03:35.6]} 23... Rf5
{[%clk 0:03:26.7]} 24. Ne6 {[%clk 0:03:31.4]} 24... Nxe6 {[%clk 0:03:24.1]} 25.
dxe6 {[%clk 0:03:28]} 25... Rbf8 {[%clk 0:03:21.8]} 26. Rbe1 {[%clk 0:03:25.3]}
26... Bd4+ {[%clk 0:03:16.1]} 27. Kh1 {[%clk 0:03:23.2]} 27... g5 {[%clk
0:03:12.1]} 28. g3 {[%clk 0:03:17.5]} 28... gxf4 {[%clk 0:03:09]} 29. gxf4
{[%clk 0:03:15.5]} 29... Kg7 {[%clk 0:03:07]} 30. Rg1+ {[%clk 0:03:13.7]} 30...
Bxg1 {[%clk 0:03:04.9]} 31. Rxg1+ {[%clk 0:03:11.7]} 31... Kf6 {[%clk
0:03:04.2]} 32. Be3 {[%clk 0:03:04.8]} 32... Kxe6 {[%clk 0:03:01.3]} 33. d4
{[%clk 0:03:01.2]} 33... cxd4 {[%clk 0:02:53.2]} 34. Bxd4 {[%clk 0:02:59]} 34...
Rxf4 {[%clk 0:02:51]} 35. Rg6+ {[%clk 0:02:55.3]} 35... Kd7 {[%clk 0:02:49]} 36.
Bg7 {[%clk 0:02:45.6]} 36... R8f5 {[%clk 0:02:43.4]} 37. Rg2 {[%clk 0:02:33]}
37... e5 {[%clk 0:02:35.8]} 38. Bh6 {[%clk 0:02:30.7]} 38... Rf1+ {[%clk
0:02:33.3]} 39. Kh2 {[%clk 0:02:29.1]} 39... d5 {[%clk 0:02:31.6]} 40. Rg7+
{[%clk 0:02:23.2]} 40... Kc6 {[%clk 0:02:29.3]} 41. Rg6+ {[%clk 0:02:18]} 41...
Kc5 {[%clk 0:02:27.8]} 42. Be3+ {[%clk 0:02:10.8]} 42... d4 {[%clk 0:02:25.8]}
43. Bh6 {[%clk 0:02:05.7]} 43... e4 {[%clk 0:02:19.2]} 44. Rg8 {[%clk
0:02:03.2]} 44... d3 {[%clk 0:02:17.3]} 45. Rc8+ {[%clk 0:02:01.2]} 45... Kd4
{[%clk 0:02:14.5]} 46. Bg7+ {[%clk 0:01:52.3]} 46... Ke3 {[%clk 0:02:12.3]} 47.
Bh6+ {[%clk 0:01:45.7]} 47... Ke2 {[%clk 0:02:09.8]} 48. Re8 {[%clk 0:01:39.7]}
48... Kf3 {[%clk 0:01:59]} 49. Rxe4 {[%clk 0:01:37.4]} 49... Kxe4 {[%clk
0:01:57.3]} 0-1

[Event "Live Chess"]
[Site "Chess.com"]
[Date "2023.05.21"]
[Round "-"]
[White "RoaringKnights"]
[Black "McSlash1"]
[Result "0-1"]
[WhiteElo "1034"]
[BlackElo "2008"]
[TimeControl "300"]
[EndTime "2:52:38 PDT"]
[Termination "McSlash1 won by checkmate"]

1. d4 {[%clk 0:04:56.3]} 1... c5 {[%clk 0:04:59.6]} 2. Nf3 {[%clk 0:04:53.1]}
2... cxd4 {[%clk 0:04:59.5]} 3. Nxd4 {[%clk 0:04:52.2]} 3... Nf6 {[%clk
0:04:59.3]} 4. Bf4 {[%clk 0:04:51]} 4... g6 {[%clk 0:04:58.9]} 5. Nf3 {[%clk
0:04:47.2]} 5... Bg7 {[%clk 0:04:58.3]} 6. e3 {[%clk 0:04:46.2]} 6... O-O {[%clk
0:04:57.8]} 7. Bd3 {[%clk 0:04:45.2]} 7... d5 {[%clk 0:04:57.4]} 8. c3 {[%clk
0:04:44.3]} 8... Nh5 {[%clk 0:04:56.2]} 9. Bg3 {[%clk 0:04:42.6]} 9... Nxg3
{[%clk 0:04:54.5]} 10. hxg3 {[%clk 0:04:41.9]} 10... e5 {[%clk 0:04:54.1]} 11.
Bc2 {[%clk 0:04:34.1]} 11... Nc6 {[%clk 0:04:52.6]} 12. Nbd2 {[%clk 0:04:32.3]}
12... Qb6 {[%clk 0:04:51.1]} 13. Nb3 {[%clk 0:04:28.9]} 13... Bg4 {[%clk
0:04:50.5]} 14. Qe2 {[%clk 0:04:20]} 14... e4 {[%clk 0:04:48.8]} 15. Qf1 {[%clk
0:04:11.6]} 15... exf3 {[%clk 0:04:47.4]} 16. gxf3 {[%clk 0:04:10.6]} 16... Bxf3
{[%clk 0:04:47.3]} 17. Rh2 {[%clk 0:04:09.8]} 17... Ne5 {[%clk 0:04:40.7]} 18.
Bd1 {[%clk 0:04:07.9]} 18... Bxd1 {[%clk 0:04:38.8]} 19. Rxd1 {[%clk 0:04:06.5]}
19... Nf3+ {[%clk 0:04:37.1]} 20. Ke2 {[%clk 0:04:03.6]} 20... Nxh2 {[%clk
0:04:35.9]} 21. Qh3 {[%clk 0:04:02]} 21... Nf3 {[%clk 0:04:31]} 22. Kxf3 {[%clk
0:03:59.8]} 22... Qc6 {[%clk 0:04:29.3]} 23. Kg2 {[%clk 0:03:58]} 23... d4+
{[%clk 0:04:27.7]} 24. Kh2 {[%clk 0:03:56.5]} 24... dxc3 {[%clk 0:04:26.9]} 25.
bxc3 {[%clk 0:03:55.1]} 25... Qxc3 {[%clk 0:04:26.3]} 26. Nd4 {[%clk 0:03:51.2]}
26... Qb2 {[%clk 0:04:23.5]} 27. Rh1 {[%clk 0:03:49]} 27... Qxf2+ {[%clk
0:04:21.8]} 28. Qg2 {[%clk 0:03:47.4]} 28... Qxg2+ {[%clk 0:04:21.4]} 29. Kxg2
{[%clk 0:03:47.1]} 29... Bxd4 {[%clk 0:04:21]} 30. exd4 {[%clk 0:03:46]} 30...
Rfd8 {[%clk 0:04:20.9]} 31. Kh3 {[%clk 0:03:45.2]} 31... Rxd4 {[%clk 0:04:19.9]}
32. g4 {[%clk 0:03:43.9]} 32... Re8 {[%clk 0:04:15.2]} 33. Kh4 {[%clk
0:03:43.1]} 33... Re3 {[%clk 0:04:12.4]} 34. Kg5 {[%clk 0:03:42.2]} 34... Kg7
{[%clk 0:04:11.9]} 35. Rh4 {[%clk 0:03:39.7]} 35... f6# {[%clk 0:04:11.3]} 0-1